[Event "January 2 Early 2024"]
[Site "https://www.chess.com"]
[Date "2024.01.02"]
[Round "4"]
[White "Larina, Maria"]
[Black "xakevicius91"]
[Result "0-1"]
[Board "153"]
[TimeControl "180+1"]
[WhiteFideId "24113182"]
[WhiteElo "2330"]
[BlackElo "2513"]
[WhiteTeam "FID"]
[WhiteClock "0:00:02"]
[BlackClock "0:00:25"]

1. e4 {[%clk 0:03:00]}  c5 {[%clk 0:02:55]} 2. Nc3 {[%clk 0:03:00]}  Nc6 {[%clk 0:02:55]} 3. g3 {[%clk 0:03:00]}  g6 {[%clk 0:02:55]} 4. Bg2 {[%clk 0:03:00]}  Bg7 {[%clk 0:02:55]} 5. d3 {[%clk 0:03:00]}  d6 {[%clk 0:02:56]} 6. Nf3 {[%clk 0:02:58]}  e6 {[%clk 0:02:52]} 7. O-O {[%clk 0:02:57]}  Nge7 {[%clk 0:02:50]} 8. Be3 {[%clk 0:02:56]}  Nd4 {[%clk 0:02:51]} 9. Qd2 {[%clk 0:02:51]}  h5 {[%clk 0:02:44]} 10. Bg5 {[%clk 0:02:38]}  a6 {[%clk 0:02:36]} 11. Nd1 {[%clk 0:02:32]}  f6 {[%clk 0:02:17]} 12. Be3 {[%clk 0:02:26]}  e5 {[%clk 0:02:17]} 13. c3 {[%clk 0:02:20]}  Nxf3+ {[%clk 0:02:13]} 14. Bxf3 {[%clk 0:02:21]}  h4 {[%clk 0:02:14]} 15. d4 {[%clk 0:02:13]}  cxd4 {[%clk 0:02:11]} 16. cxd4 {[%clk 0:02:14]}  Be6 {[%clk 0:01:45]} 17. Nc3 {[%clk 0:01:58]}  Qd7 {[%clk 0:01:37]} 18. Rfd1 {[%clk 0:01:44]}  hxg3 {[%clk 0:01:37]} 19. fxg3 {[%clk 0:01:43]}  Bg4 {[%clk 0:01:32]} 20. Bxg4 {[%clk 0:01:13]}  Qxg4 {[%clk 0:01:32]} 21. dxe5 {[%clk 0:01:13]}  dxe5 {[%clk 0:01:30]} 22. Bb6 {[%clk 0:00:58]}  O-O {[%clk 0:01:26]} 23. Nd5 {[%clk 0:00:57]}  Nxd5 {[%clk 0:01:23]} 24. Qxd5+ {[%clk 0:00:55]}  Kh7 {[%clk 0:01:24]} 25. Rd2 {[%clk 0:00:47]}  Rac8 {[%clk 0:01:21]} 26. Re1 {[%clk 0:00:30]}  Rc6 {[%clk 0:01:15]} 27. Bf2 {[%clk 0:00:26]}  Rfc8 {[%clk 0:01:11]} 28. Qd7 {[%clk 0:00:22]}  Qxd7 {[%clk 0:01:11]} 29. Rxd7 {[%clk 0:00:23]}  R6c7 {[%clk 0:01:11]} 30. Red1 {[%clk 0:00:23]}  Rc1 {[%clk 0:01:00]} 31. Be3 {[%clk 0:00:14]}  Rxd1+ {[%clk 0:01:00]} 32. Rxd1 {[%clk 0:00:15]}  Rc7 {[%clk 0:00:58]} 33. Kf2 {[%clk 0:00:15]}  g5 {[%clk 0:00:58]} 34. h3 {[%clk 0:00:15]}  Kg6 {[%clk 0:00:58]} 35. Kf3 {[%clk 0:00:15]}  Bf8 {[%clk 0:00:57]} 36. g4 {[%clk 0:00:14]}  Be7 {[%clk 0:00:55]} 37. Rd2 {[%clk 0:00:14]}  Bb4 {[%clk 0:00:52]} 38. Re2 {[%clk 0:00:13]}  b5 {[%clk 0:00:51]} 39. a3 {[%clk 0:00:13]}  Be7 {[%clk 0:00:51]} 40. Rd2 {[%clk 0:00:12]}  a5 {[%clk 0:00:46]} 41. Ke2 {[%clk 0:00:10]}  b4 {[%clk 0:00:47]} 42. axb4 {[%clk 0:00:10]}  Bxb4 {[%clk 0:00:46]} 43. Rd5 {[%clk 0:00:06]}  Rc2+ {[%clk 0:00:46]} 44. Kd3 {[%clk 0:00:06]}  Rxb2 {[%clk 0:00:44]} 45. Rd8 {[%clk 0:00:05]}  Rh2 {[%clk 0:00:43]} 46. Rh8 {[%clk 0:00:05]}  Kg7 {[%clk 0:00:41]} 47. Rh5 {[%clk 0:00:05]}  Rg2 {[%clk 0:00:39]} 48. Kc4 {[%clk 0:00:04]}  Rg3 {[%clk 0:00:39]} 49. Bb6 {[%clk 0:00:03]}  Rc3+ {[%clk 0:00:33]} 50. Kb5 {[%clk 0:00:04]}  Ra3 {[%clk 0:00:32]} 51. Kc4 {[%clk 0:00:03]}  Ra1 {[%clk 0:00:30]} 52. h4 {[%clk 0:00:03]}  gxh4 {[%clk 0:00:27]} 53. Rxh4 {[%clk 0:00:04]}  Be7 {[%clk 0:00:26]} 54. Rh5 {[%clk 0:00:03]}  a4 {[%clk 0:00:25]} 55. Kc3 {[%clk 0:00:02]}  a3 {[%clk 0:00:25]} 56. Kb3 {[%clk 0:00:03]}  Rb1+ {[%clk 0:00:25]} 57. Ka2 {[%clk 0:00:03]}  Rb2+ {[%clk 0:00:25]} 58. Ka1 {[%clk 0:00:03]}  Rxb6 {[%clk 0:00:26]} 59. g5 {[%clk 0:00:03]}  fxg5 {[%clk 0:00:26]} 60. Rh1 {[%clk 0:00:02]}  Bc5 {[%clk 0:00:25]} 0-1

[Event "January 2 Early 2024"]
[Site "https://www.chess.com"]
[Date "2024.01.02"]
[Round "4"]
[White "Ankerst, Mihael"]
[Black "Lopusiewicz, Piotr"]
[Result "0-1"]
[Board "154"]
[TimeControl "180+1"]
[WhiteFideId "14602369"]
[BlackFideId "1116029"]
[WhiteElo "2324"]
[BlackElo "2501"]
[WhiteTeam "SLO"]
[BlackTeam "POL"]
[WhiteClock "0:00:00"]
[BlackClock "0:00:27"]

1. d4 {[%clk 0:02:56]}  Nf6 {[%clk 0:02:59]} 2. c4 {[%clk 0:02:56]}  e6 {[%clk 0:02:59]} 3. Nc3 {[%clk 0:02:56]}  d5 {[%clk 0:02:59]} 4. cxd5 {[%clk 0:02:55]}  exd5 {[%clk 0:02:59]} 5. Bg5 {[%clk 0:02:55]}  Be7 {[%clk 0:02:59]} 6. e3 {[%clk 0:02:55]}  h6 {[%clk 0:02:59]} 7. Bh4 {[%clk 0:02:54]}  O-O {[%clk 0:03:00]} 8. Bd3 {[%clk 0:02:54]}  c6 {[%clk 0:03:00]} 9. Nge2 {[%clk 0:02:54]}  Nbd7 {[%clk 0:03:00]} 10. Qc2 {[%clk 0:02:54]}  Re8 {[%clk 0:03:01]} 11. O-O-O {[%clk 0:02:52]}  Ne4 {[%clk 0:02:48]} 12. Bxe7 {[%clk 0:02:48]}  Qxe7 {[%clk 0:02:48]} 13. Ng3 {[%clk 0:02:46]}  Ndf6 {[%clk 0:02:43]} 14. Ncxe4 {[%clk 0:02:21]}  dxe4 {[%clk 0:02:38]} 15. Be2 {[%clk 0:02:16]}  b6 {[%clk 0:02:28]} 16. Kb1 {[%clk 0:02:16]}  Be6 {[%clk 0:02:26]} 17. Qxc6 {[%clk 0:02:10]}  Rec8 {[%clk 0:02:16]} 18. Qa4 {[%clk 0:02:10]}  a6 {[%clk 0:02:06]} 19. Rc1 {[%clk 0:02:09]}  b5 {[%clk 0:02:06]} 20. Rxc8+ {[%clk 0:02:07]}  Bxc8 {[%clk 0:02:03]} 21. Qc2 {[%clk 0:02:06]}  Be6 {[%clk 0:01:56]} 22. Rc1 {[%clk 0:01:58]}  Qb4 {[%clk 0:01:44]} 23. Nxe4 {[%clk 0:01:23]}  Nd5 {[%clk 0:01:43]} 24. Qc5 {[%clk 0:01:10]}  Qa5 {[%clk 0:01:39]} 25. Qd6 {[%clk 0:00:57]}  Rd8 {[%clk 0:01:26]} 26. Qe5 {[%clk 0:00:53]}  Nxe3 {[%clk 0:01:13]} 27. fxe3 {[%clk 0:00:29]}  Qxa2+ {[%clk 0:01:06]} 28. Kc2 {[%clk 0:00:29]}  Bb3+ {[%clk 0:01:04]} 29. Kc3 {[%clk 0:00:06]}  Ba4 {[%clk 0:00:28]} 30. Nc5 {[%clk 0:00:00]}  Rc8 {[%clk 0:00:27]} 0-1

[Event "January 2 Early 2024"]
[Site "https://www.chess.com"]
[Date "2024.01.02"]
[Round "4"]
[White "Zampronha, Wladimir Camilo"]
[Black "Ladan, Nicholas"]
[Result "0-1"]
[Board "157"]
[TimeControl "180+1"]
[WhiteFideId "2103087"]
[BlackFideId "30918855"]
[WhiteElo "2315"]
[BlackElo "2493"]
[WhiteTeam "BRA"]
[BlackTeam "USA"]
[WhiteClock "0:00:00"]
[BlackClock "0:00:40"]

1. e4 {[%clk 0:03:00]}  b6 {[%clk 0:02:59]} 2. d4 {[%clk 0:02:59]}  Bb7 {[%clk 0:03:00]} 3. Bd3 {[%clk 0:03:00]}  f5 {[%clk 0:02:59]} 4. Qh5+ {[%clk 0:02:56]}  g6 {[%clk 0:02:59]} 5. Qe2 {[%clk 0:02:57]}  fxe4 {[%clk 0:02:48]} 6. Bxe4 {[%clk 0:02:56]}  d5 {[%clk 0:02:48]} 7. Bd3 {[%clk 0:02:52]}  Nf6 {[%clk 0:02:47]} 8. Nf3 {[%clk 0:02:48]}  Nbd7 {[%clk 0:02:47]} 9. Ng5 {[%clk 0:02:47]}  c5 {[%clk 0:02:35]} 10. Qe6 {[%clk 0:02:42]}  Qb8 {[%clk 0:02:21]} 11. Bf4 {[%clk 0:02:05]}  Qxf4 {[%clk 0:02:02]} 12. Qf7+ {[%clk 0:02:05]}  Kd8 {[%clk 0:02:03]} 13. Ne6+ {[%clk 0:02:06]}  Kc8 {[%clk 0:02:03]} 14. Nxf4 {[%clk 0:02:07]}  cxd4 {[%clk 0:02:03]} 15. O-O {[%clk 0:01:51]}  e5 {[%clk 0:02:01]} 16. Ne6 {[%clk 0:01:46]}  Bd6 {[%clk 0:01:46]} 17. Na3 {[%clk 0:01:39]}  a6 {[%clk 0:01:41]} 18. Rfe1 {[%clk 0:01:34]}  e4 {[%clk 0:01:40]} 19. Be2 {[%clk 0:01:29]}  Re8 {[%clk 0:01:32]} 20. Ng5 {[%clk 0:01:22]}  Re7 {[%clk 0:01:28]} 21. Nxe4 {[%clk 0:00:19]}  Bxa3 {[%clk 0:01:07]} 22. Nxf6 {[%clk 0:00:05]}  Rxf7 {[%clk 0:01:04]} 23. Nxd7 {[%clk 0:00:05]}  Kxd7 {[%clk 0:01:02]} 24. bxa3 {[%clk 0:00:04]}  Kd6 {[%clk 0:00:58]} 25. Bd3 {[%clk 0:00:04]}  Raf8 {[%clk 0:00:55]} 26. Rab1 {[%clk 0:00:04]}  b5 {[%clk 0:00:52]} 27. a4 {[%clk 0:00:05]}  Bc6 {[%clk 0:00:45]} 28. axb5 {[%clk 0:00:05]}  axb5 {[%clk 0:00:46]} 29. Re2 {[%clk 0:00:05]}  Ra7 {[%clk 0:00:44]} 30. Bxb5 {[%clk 0:00:03]}  Rb8 {[%clk 0:00:40]} 31. a4 {[%clk 0:00:00]}  Rxa4 {[%clk 0:00:40]} 0-1

[Event "January 2 Early 2024"]
[Site "https://www.chess.com"]
[Date "2024.01.02"]
[Round "4"]
[White "Skaric, Djuro"]
[Black "Shishkov, Andrei"]
[Result "0-1"]
[Board "160"]
[TimeControl "180+1"]
[WhiteFideId "934569"]
[BlackFideId "4500563"]
[WhiteElo "2302"]
[BlackElo "2488"]
[WhiteTeam "SRB"]
[BlackTeam "EST"]
[WhiteClock "0:00:00"]
[BlackClock "0:00:10"]

1. g3 {[%clk 0:03:00]}  d5 {[%clk 0:02:58]} 2. Bg2 {[%clk 0:03:00]}  c6 {[%clk 0:02:57]} 3. d3 {[%clk 0:03:00]}  e5 {[%clk 0:02:50]} 4. Nf3 {[%clk 0:03:00]}  Bd6 {[%clk 0:02:49]} 5. O-O {[%clk 0:03:01]}  Nf6 {[%clk 0:02:48]} 6. Nc3 {[%clk 0:03:01]}  d4 {[%clk 0:02:41]} 7. Ne4 {[%clk 0:03:01]}  Nxe4 {[%clk 0:02:40]} 8. dxe4 {[%clk 0:03:02]}  O-O {[%clk 0:02:38]} 9. h3 {[%clk 0:03:02]}  c5 {[%clk 0:02:27]} 10. Ne1 {[%clk 0:03:00]}  Nc6 {[%clk 0:01:59]} 11. f4 {[%clk 0:02:59]}  exf4 {[%clk 0:01:58]} 12. gxf4 {[%clk 0:02:58]}  Qh4 {[%clk 0:01:49]} 13. e5 {[%clk 0:02:51]}  Bc7 {[%clk 0:01:37]} 14. Kh2 {[%clk 0:02:49]}  f6 {[%clk 0:01:35]} 15. Nf3 {[%clk 0:02:48]}  Qh5 {[%clk 0:01:34]} 16. e4 {[%clk 0:02:48]}  fxe5 {[%clk 0:01:32]} 17. f5 {[%clk 0:02:39]}  Bd7 {[%clk 0:01:27]} 18. Qe2 {[%clk 0:02:34]}  Kh8 {[%clk 0:01:24]} 19. Bd2 {[%clk 0:02:31]}  Rae8 {[%clk 0:01:22]} 20. Qf2 {[%clk 0:02:29]}  Nb4 {[%clk 0:01:13]} 21. Bxb4 {[%clk 0:02:26]}  cxb4 {[%clk 0:01:13]} 22. Ne1 {[%clk 0:02:20]}  Bb5 {[%clk 0:01:07]} 23. Nd3 {[%clk 0:02:20]}  Bd6 {[%clk 0:01:08]} 24. Qg3 {[%clk 0:02:14]}  Rc8 {[%clk 0:01:06]} 25. Bf3 {[%clk 0:02:12]}  Qh6 {[%clk 0:01:05]} 26. Rf2 {[%clk 0:02:11]}  Rc7 {[%clk 0:00:59]} 27. Rg1 {[%clk 0:02:07]}  Qf6 {[%clk 0:00:49]} 28. h4 {[%clk 0:01:45]}  Rfc8 {[%clk 0:00:48]} 29. Rgg2 {[%clk 0:01:45]}  a5 {[%clk 0:00:46]} 30. Kh3 {[%clk 0:01:44]}  a4 {[%clk 0:00:41]} 31. Nc1 {[%clk 0:01:10]}  Bf8 {[%clk 0:00:34]} 32. Rd2 {[%clk 0:00:49]}  a3 {[%clk 0:00:31]} 33. bxa3 {[%clk 0:00:48]}  bxa3 {[%clk 0:00:32]} 34. Nb3 {[%clk 0:00:43]}  Rc3 {[%clk 0:00:30]} 35. Qg4 {[%clk 0:00:41]}  Be8 {[%clk 0:00:24]} 36. Kh2 {[%clk 0:00:40]}  h5 {[%clk 0:00:19]} 37. Qg3 {[%clk 0:00:38]}  Be7 {[%clk 0:00:20]} 38. Kg1 {[%clk 0:00:33]}  R8c7 {[%clk 0:00:18]} 39. Rh2 {[%clk 0:00:31]}  Bd8 {[%clk 0:00:18]} 40. Qf2 {[%clk 0:00:26]}  Re3 {[%clk 0:00:17]} 41. Bd1 {[%clk 0:00:25]}  Rcc3 {[%clk 0:00:17]} 42. Re2 {[%clk 0:00:14]}  Rg3+ {[%clk 0:00:17]} 43. Kf1 {[%clk 0:00:14]}  Rh3 {[%clk 0:00:16]} 44. Rg2 {[%clk 0:00:11]}  Qxh4 {[%clk 0:00:15]} 45. Ke1 {[%clk 0:00:09]}  Rh1+ {[%clk 0:00:15]} 46. Kd2 {[%clk 0:00:08]}  Qxf2 {[%clk 0:00:14]} 47. Rexf2 {[%clk 0:00:08]}  h4 {[%clk 0:00:13]} 48. Rh2 {[%clk 0:00:07]}  Rxh2 {[%clk 0:00:13]} 49. Rxh2 {[%clk 0:00:06]}  Kg8 {[%clk 0:00:13]} 50. Be2 {[%clk 0:00:06]}  Rg3 {[%clk 0:00:12]} 51. Bd3 {[%clk 0:00:06]}  Bg5+ {[%clk 0:00:12]} 52. Ke2 {[%clk 0:00:06]}  Bh5+ {[%clk 0:00:11]} 53. Kf2 {[%clk 0:00:06]}  Rf3+ {[%clk 0:00:11]} 54. Kg2 {[%clk 0:00:06]}  Bg4 {[%clk 0:00:10]} 55. Nc5 {[%clk 0:00:04]}  h3+ {[%clk 0:00:10]} 56. Kg1 {[%clk 0:00:02]}  Be3+ {[%clk 0:00:10]} 57. Kh1 {[%clk 0:00:00]}  Rg3 {[%clk 0:00:10]} 0-1

[Event "January 2 Early 2024"]
[Site "https://www.chess.com"]
[Date "2024.01.02"]
[Round "4"]
[White "Garcia Almaguer, Juan Manuel"]
[Black "Eggleston, Thomas A"]
[Result "1-0"]
[Board "162"]
[TimeControl "180+1"]
[WhiteFideId "5110491"]
[BlackFideId "412139"]
[WhiteElo "2486"]
[BlackElo "2300"]
[WhiteTeam "MEX"]
[BlackTeam "ENG"]
[WhiteClock "0:00:33"]
[BlackClock "0:00:00"]

1. e4 {[%clk 0:03:00]}  e6 {[%clk 0:02:59]} 2. d4 {[%clk 0:02:58]}  d5 {[%clk 0:02:59]} 3. e5 {[%clk 0:02:55]}  c5 {[%clk 0:02:58]} 4. c3 {[%clk 0:02:56]}  Nc6 {[%clk 0:02:58]} 5. Nf3 {[%clk 0:02:49]}  Qb6 {[%clk 0:02:58]} 6. Bd3 {[%clk 0:02:49]}  Nh6 {[%clk 0:02:43]} 7. O-O {[%clk 0:02:42]}  cxd4 {[%clk 0:02:42]} 8. cxd4 {[%clk 0:02:41]}  Nf5 {[%clk 0:02:42]} 9. Bxf5 {[%clk 0:02:40]}  exf5 {[%clk 0:02:42]} 10. Nc3 {[%clk 0:02:40]}  Be6 {[%clk 0:02:42]} 11. Qb3 {[%clk 0:02:24]}  Qxb3 {[%clk 0:02:25]} 12. axb3 {[%clk 0:02:25]}  h6 {[%clk 0:02:16]} 13. Nb5 {[%clk 0:02:12]}  Kd7 {[%clk 0:02:16]} 14. h4 {[%clk 0:02:06]}  Be7 {[%clk 0:02:10]} 15. Rd1 {[%clk 0:02:02]}  a6 {[%clk 0:01:54]} 16. Nc3 {[%clk 0:02:01]}  Rag8 {[%clk 0:01:54]} 17. Na4 {[%clk 0:02:01]}  g5 {[%clk 0:01:47]} 18. hxg5 {[%clk 0:02:00]}  hxg5 {[%clk 0:01:47]} 19. g3 {[%clk 0:01:50]}  f4 {[%clk 0:01:34]} 20. Rd3 {[%clk 0:01:33]}  Bf5 {[%clk 0:01:29]} 21. Rc3 {[%clk 0:01:31]}  Bb4 {[%clk 0:01:26]} 22. Nb6+ {[%clk 0:01:30]}  Kd8 {[%clk 0:01:21]} 23. Nxd5 {[%clk 0:01:25]}  Bxc3 {[%clk 0:00:58]} 24. Nxc3 {[%clk 0:01:26]}  g4 {[%clk 0:00:36]} 25. Nh4 {[%clk 0:01:20]}  Be6 {[%clk 0:00:23]} 26. d5 {[%clk 0:01:17]}  fxg3 {[%clk 0:00:21]} 27. fxg3 {[%clk 0:01:15]}  Nxe5 {[%clk 0:00:20]} 28. dxe6 {[%clk 0:01:16]}  fxe6 {[%clk 0:00:17]} 29. Bf4 {[%clk 0:01:12]}  Nf3+ {[%clk 0:00:15]} 30. Nxf3 {[%clk 0:01:12]}  gxf3 {[%clk 0:00:15]} 31. Rd1+ {[%clk 0:01:10]}  Kc8 {[%clk 0:00:14]} 32. Na4 {[%clk 0:01:04]}  b5 {[%clk 0:00:13]} 33. Nc5 {[%clk 0:01:02]}  e5 {[%clk 0:00:07]} 34. Bxe5 {[%clk 0:00:56]}  Rh5 {[%clk 0:00:07]} 35. Re1 {[%clk 0:00:47]}  Re8 {[%clk 0:00:05]} 36. Nd3 {[%clk 0:00:46]}  Kb7 {[%clk 0:00:03]} 37. Kf2 {[%clk 0:00:37]}  Ka8 {[%clk 0:00:02]} 38. Kxf3 {[%clk 0:00:37]}  a5 {[%clk 0:00:02]} 39. g4 {[%clk 0:00:33]}  Rh3+ {[%clk 0:00:00]} 40. Ke4 {[%clk 0:00:33]} 1-0

[Event "January 2 Early 2024"]
[Site "https://www.chess.com"]
[Date "2024.01.02"]
[Round "4"]
[White "Lesbekova, Assel"]
[Black "Mekhane, Adam"]
[Result "0-1"]
[Board "163"]
[TimeControl "180+1"]
[WhiteFideId "13713248"]
[BlackFideId "36050601"]
[WhiteElo "2291"]
[BlackElo "2483"]
[WhiteTeam "KGZ"]
[BlackTeam "FRA"]
[WhiteClock "0:01:37"]
[BlackClock "0:00:48"]

1. e4 {[%clk 0:02:55]}  e5 {[%clk 0:02:40]} 2. Nf3 {[%clk 0:02:55]}  d6 {[%clk 0:02:40]} 3. d4 {[%clk 0:02:54]}  exd4 {[%clk 0:02:41]} 4. Nxd4 {[%clk 0:02:55]}  Nf6 {[%clk 0:02:41]} 5. Nc3 {[%clk 0:02:55]}  Be7 {[%clk 0:02:41]} 6. Bb5+ {[%clk 0:02:55]}  c6 {[%clk 0:02:37]} 7. Be2 {[%clk 0:02:55]}  O-O {[%clk 0:02:36]} 8. O-O {[%clk 0:02:54]}  Re8 {[%clk 0:02:33]} 9. f3 {[%clk 0:02:53]}  d5 {[%clk 0:02:28]} 10. exd5 {[%clk 0:02:50]}  Nxd5 {[%clk 0:02:28]} 11. Nxd5 {[%clk 0:02:48]}  Qxd5 {[%clk 0:02:27]} 12. c4 {[%clk 0:02:43]}  Qd8 {[%clk 0:02:22]} 13. Nb3 {[%clk 0:02:37]}  Be6 {[%clk 0:02:16]} 14. Qxd8 {[%clk 0:02:33]}  Rxd8 {[%clk 0:02:14]} 15. Be3 {[%clk 0:02:33]}  Na6 {[%clk 0:02:00]} 16. Rfd1 {[%clk 0:02:33]}  b6 {[%clk 0:02:00]} 17. Nd4 {[%clk 0:02:26]}  Bd7 {[%clk 0:01:56]} 18. Kf2 {[%clk 0:02:22]}  Nc7 {[%clk 0:01:53]} 19. Rd2 {[%clk 0:02:17]}  Bf6 {[%clk 0:01:51]} 20. Rad1 {[%clk 0:02:16]}  Kf8 {[%clk 0:01:50]} 21. Bf4 {[%clk 0:02:14]}  Ne6 {[%clk 0:01:47]} 22. Nxe6+ {[%clk 0:02:13]}  Bxe6 {[%clk 0:01:47]} 23. Rxd8+ {[%clk 0:02:13]}  Rxd8 {[%clk 0:01:48]} 24. Rxd8+ {[%clk 0:02:10]}  Bxd8 {[%clk 0:01:47]} 25. Bb8 {[%clk 0:02:11]}  a6 {[%clk 0:01:45]} 26. c5 {[%clk 0:02:11]}  b5 {[%clk 0:01:42]} 27. a3 {[%clk 0:02:09]}  a5 {[%clk 0:01:40]} 28. Bd6+ {[%clk 0:02:08]}  Ke8 {[%clk 0:01:15]} 29. b4 {[%clk 0:02:07]}  axb4 {[%clk 0:01:12]} 30. axb4 {[%clk 0:02:08]}  Bf6 {[%clk 0:01:13]} 31. Bd3 {[%clk 0:01:52]}  Bc3 {[%clk 0:01:10]} 32. Be4 {[%clk 0:01:51]}  Kd7 {[%clk 0:01:09]} 33. Bxh7 {[%clk 0:01:51]}  Bxb4 {[%clk 0:01:00]} 34. Be4 {[%clk 0:01:47]}  Bc3 {[%clk 0:00:58]} 35. f4 {[%clk 0:01:47]}  b4 {[%clk 0:00:57]} 36. f5 {[%clk 0:01:46]}  Ba2 {[%clk 0:00:57]} 37. Ke3 {[%clk 0:01:43]}  b3 {[%clk 0:00:55]} 38. Kd3 {[%clk 0:01:44]}  Bf6 {[%clk 0:00:50]} 39. g4 {[%clk 0:01:39]}  Bb1+ {[%clk 0:00:48]} 40. Ke3 {[%clk 0:01:37]}  Bxe4 {[%clk 0:00:48]} 0-1

[Event "January 2 Early 2024"]
[Site "https://www.chess.com"]
[Date "2024.01.02"]
[Round "4"]
[White "Pourkashiyan, Atousa"]
[Black "Monpeurt, Cyrielle"]
[Result "1-0"]
[Board "167"]
[TimeControl "180+1"]
[WhiteFideId "12502014"]
[BlackFideId "677400"]
[WhiteElo "2476"]
[BlackElo "2283"]
[WhiteTeam "USA"]
[BlackTeam "FRA"]
[WhiteClock "0:00:11"]
[BlackClock "0:00:05"]

1. Nf3 {[%clk 0:01:39]}  c5 {[%clk 0:02:59]} 2. g3 {[%clk 0:01:40]}  Nc6 {[%clk 0:02:59]} 3. Bg2 {[%clk 0:01:41]}  g6 {[%clk 0:02:59]} 4. O-O {[%clk 0:01:41]}  Bg7 {[%clk 0:03:00]} 5. d3 {[%clk 0:01:42]}  d5 {[%clk 0:02:59]} 6. c3 {[%clk 0:01:43]}  e5 {[%clk 0:02:58]} 7. Nbd2 {[%clk 0:01:44]}  Nge7 {[%clk 0:02:57]} 8. e4 {[%clk 0:01:45]}  d4 {[%clk 0:02:55]} 9. Nc4 {[%clk 0:01:44]}  O-O {[%clk 0:02:53]} 10. a4 {[%clk 0:01:44]}  a6 {[%clk 0:02:45]} 11. cxd4 {[%clk 0:01:42]}  cxd4 {[%clk 0:02:37]} 12. Bg5 {[%clk 0:01:42]}  h6 {[%clk 0:02:33]} 13. Bxe7 {[%clk 0:01:41]}  Qxe7 {[%clk 0:02:30]} 14. a5 {[%clk 0:01:42]}  Be6 {[%clk 0:02:26]} 15. Nb6 {[%clk 0:01:42]}  Rad8 {[%clk 0:02:18]} 16. Qa4 {[%clk 0:01:42]}  f5 {[%clk 0:02:02]} 17. Rfe1 {[%clk 0:01:26]}  fxe4 {[%clk 0:01:54]} 18. dxe4 {[%clk 0:01:23]}  Bg4 {[%clk 0:01:46]} 19. Nd5 {[%clk 0:01:22]}  Qf7 {[%clk 0:01:40]} 20. Ra3 {[%clk 0:01:19]}  d3 {[%clk 0:01:25]} 21. Rxd3 {[%clk 0:01:17]}  Nd4 {[%clk 0:01:25]} 22. Ree3 {[%clk 0:01:01]}  Rxd5 {[%clk 0:01:03]} 23. exd5 {[%clk 0:00:56]}  e4 {[%clk 0:01:03]} 24. Rxd4 {[%clk 0:00:46]}  Bxd4 {[%clk 0:00:41]} 25. Qxd4 {[%clk 0:00:44]}  exf3 {[%clk 0:00:33]} 26. Bf1 {[%clk 0:00:44]}  h5 {[%clk 0:00:24]} 27. d6 {[%clk 0:00:44]}  Qf6 {[%clk 0:00:19]} 28. Qd5+ {[%clk 0:00:33]}  Kh8 {[%clk 0:00:18]} 29. Qxb7 {[%clk 0:00:33]}  Qxd6 {[%clk 0:00:16]} 30. Re7 {[%clk 0:00:29]}  Qf6 {[%clk 0:00:14]} 31. Rh7+ {[%clk 0:00:29]}  Kg8 {[%clk 0:00:15]} 32. Rh6 {[%clk 0:00:26]}  Re8 {[%clk 0:00:10]} 33. Qh7+ {[%clk 0:00:22]}  Kf8 {[%clk 0:00:10]} 34. Rxg6 {[%clk 0:00:21]}  Qxb2 {[%clk 0:00:08]} 35. Qh6+ {[%clk 0:00:18]}  Kf7 {[%clk 0:00:08]} 36. Rb6 {[%clk 0:00:13]}  Qg7 {[%clk 0:00:06]} 37. Qf4+ {[%clk 0:00:12]}  Kg8 {[%clk 0:00:06]} 38. Bc4+ {[%clk 0:00:11]}  Kh8 {[%clk 0:00:06]} 39. Rh6+ {[%clk 0:00:10]}  Qh7 {[%clk 0:00:05]} 40. Rxh7+ {[%clk 0:00:11]}  Kxh7 {[%clk 0:00:05]} 41. Qf7+ {[%clk 0:00:10]}  Kh6 {[%clk 0:00:05]} 42. Qxe8 {[%clk 0:00:11]} 1-0

[Event "January 2 Early 2024"]
[Site "https://www.chess.com"]
[Date "2024.01.02"]
[Round "4"]
[White "Azali, Tannaz"]
[Black "Minina, Veronika"]
[Result "1-0"]
[Board "169"]
[TimeControl "180+1"]
[WhiteFideId "12537721"]
[BlackFideId "4174780"]
[WhiteElo "2474"]
[BlackElo "2280"]
[WhiteTeam "IRI"]
[BlackTeam "RUS"]
[WhiteClock "0:02:47"]
[BlackClock "0:01:34"]

1. Nf3 {[%clk 0:02:59]}  Nf6 {[%clk 0:02:26]} 2. g3 {[%clk 0:02:59]}  g6 {[%clk 0:02:27]} 3. Bg2 {[%clk 0:03:00]}  Bg7 {[%clk 0:02:27]} 4. O-O {[%clk 0:03:01]}  O-O {[%clk 0:02:28]} 5. c4 {[%clk 0:03:01]}  d6 {[%clk 0:02:29]} 6. Nc3 {[%clk 0:03:02]}  c5 {[%clk 0:02:30]} 7. Rb1 {[%clk 0:03:02]}  Nc6 {[%clk 0:02:30]} 8. a3 {[%clk 0:03:02]}  a6 {[%clk 0:02:28]} 9. b4 {[%clk 0:03:01]}  cxb4 {[%clk 0:02:27]} 10. axb4 {[%clk 0:03:02]}  Rb8 {[%clk 0:02:27]} 11. b5 {[%clk 0:03:01]}  axb5 {[%clk 0:02:24]} 12. Nxb5 {[%clk 0:03:02]}  Ne4 {[%clk 0:02:11]} 13. Qc2 {[%clk 0:02:57]}  Bf5 {[%clk 0:02:07]} 14. d3 {[%clk 0:02:57]}  Nc5 {[%clk 0:01:58]} 15. h3 {[%clk 0:02:55]}  Na6 {[%clk 0:01:53]} 16. Bd2 {[%clk 0:02:54]}  Nc5 {[%clk 0:01:50]} 17. e4 {[%clk 0:02:50]}  Bd7 {[%clk 0:01:49]} 18. d4 {[%clk 0:02:51]}  Ne6 {[%clk 0:01:34]} 19. d5 {[%clk 0:02:47]} 1-0